bitfinex-derivatives/quotes_BTCF0:USTF0_20210404
["timestamp","ask_amount","ask_price","bid_price","bid_amount"]
[1617532014464,0.61054925,57565.0,57564.0,0.88367388]
[1617532016867,0.36607405,57565.0,57564.0,0.88367388]
[1617532017267,0.61053315,57565.0,57564.0,0.88367388]
[1617532019369,0.91570784,57565.0,57564.0,0.88367388]
[1617532020281,0.91570784,57565.0,57564.0,1.01550388]
[1617532024576,0.91570784,57565.0,57564.0,2.01550388]
[1617532028078,0.91570784,57565.0,57564.0,1.01550388]
[1617532028280,0.91570784,57565.0,57564.0,0.88367388]
[1617532032485,1.03775784,57565.0,57564.0,0.88367388]
[1617532034490,0.91570784,57565.0,57564.0,0.88367388]
[1617532038091,0.91570784,57565.0,57564.0,3.43897388]
[1617532038692,0.91570784,57565.0,57564.0,3.53064709]
[1617532039497,0.91570784,57565.0,57564.0,4.53064709]
[1617532040094,0.91570784,57565.0,57564.0,3.53064709]
[1617532041297,0.30517469,57565.0,57564.0,4.03837046]
[1617532042200,0.67135986,57565.0,57564.0,4.03837046]
[1617532042597,0.91581691,57565.0,57564.0,4.03837046]
[1617532042998,0.91581691,57565.0,57564.0,5.03837046]
[1617532045504,0.54963174,57565.0,57564.0,5.03837046]
[1617532046004,0.91523364,57565.0,57564.0,5.03837046]
[1617532046805,0.54963174,57565.0,57564.0,5.03837046]
[1617532047405,0.30517469,57565.0,57564.0,5.03837046]
[1617532050007,0.54962886,57565.0,57564.0,5.03837046]
[1617532051409,0.30517469,57565.0,57564.0,4.53064709]
[1617532051810,0.30517469,57565.0,57564.0,5.03898907]
[1617532052210,0.01025913,57565.0,57564.0,5.03898907]
[1617532052813,0.00518133,57565.0,57564.0,5.03898907]
[1617532053213,0.11243776,57566.0,57564.0,5.03898907]
[1617532053513,0.00213359,57565.0,57564.0,5.03898907]
[1617532053713,0.00213359,57565.0,57564.0,4.03898907]
[1617532053916,0.10725655,57566.0,57564.0,3.5653]
[1617532054318,0.11243685,57566.0,57565.0,1.0]
[1617532054718,0.11243685,57566.0,57565.0,1.27]
[1617532054918,0.11243685,57566.0,57565.0,2.7444151]
[1617532058524,0.11243685,57566.0,57565.0,2.9444151]
[1617532060027,0.10939105,57566.0,57565.0,2.9444151]
[1617532061228,0.10725655,57566.0,57565.0,2.9444151]
[1617532068139,0.10725655,57566.0,57565.0,1.7444151]
[1617532069440,0.10938708,57566.0,57565.0,1.7444151]
[1617532070641,0.10725655,57566.0,57565.0,1.7444151]
[1617532070840,0.10725655,57566.0,57565.0,2.7444151]
[1617532071243,0.10938684,57566.0,57565.0,2.7444151]
[1617532071642,0.10725655,57566.0,57565.0,2.7444151]
[1617532073144,0.10938824,57566.0,57565.0,2.7444151]
[1617532076449,0.00213169,57566.0,57565.0,2.7444151]
[1617532076951,0.10938824,57566.0,57565.0,2.85167165]
[1617532078756,0.10938824,57566.0,57565.0,1.85167165]
[1617532078958,0.10725655,57566.0,57565.0,2.85167165]
[1617532081660,3.71605655,57566.0,57565.0,2.76000672]
[1617532082660,0.10725655,57566.0,57565.0,2.76000672]
[1617532082861,0.10725655,57566.0,57565.0,5.73180672]
[1617532083262,0.10725655,57566.0,57565.0,5.96604758]
[1617532088765,0.10725655,57566.0,57565.0,4.96604758]
[1617532088965,0.10725655,57566.0,57565.0,5.96604758]
[1617532102786,0.10725655,57566.0,57565.0,2.99424758]
[1617532103188,0.10725655,57566.0,57565.0,2.76000672]
[1617532103890,3.63505655,57566.0,57565.0,2.76000672]
[1617532104289,0.10725655,57566.0,57565.0,2.76000672]
[1617532104689,0.10725655,57566.0,57565.0,6.25570672]
[1617532105392,0.10725655,57566.0,57565.0,6.48994072]
[1617532106592,0.10725655,57566.0,57565.0,7.05928717]
[1617532108294,0.30478701,57573.0,57565.0,7.05928717]
[1617532108295,1.5,57608.0,57565.0,4.87295655]
[1617532108693,1.0,57606.0,57568.0,1.0]
[1617532108897,0.00213323,57570.0,57568.0,1.0]
[1617532109094,0.00213323,57570.0,57569.0,0.33110244]
[1617532109294,0.00213323,57570.0,57569.0,1.33110244]
[1617532109602,0.00518069,57572.0,57569.0,1.33110244]
[1617532109603,0.00213336,57571.0,57569.0,2.65274824]
[1617532109998,0.00213336,57571.0,57570.0,1.38274648]
[1617532110294,0.00213336,57571.0,57570.0,2.38274648]
[1617532110495,0.00213336,57571.0,57570.0,2.65274648]
[1617532111498,0.00518069,57572.0,57570.0,2.65274648]
[1617532111499,0.01027384,57572.0,57570.0,2.65274648]
[1617532111997,0.01027384,57572.0,57571.0,2.3840771]
[1617532112397,0.01027384,57572.0,57571.0,2.6540771]
[1617532113199,0.01027384,57572.0,57571.0,2.76133365]
[1617532114503,0.01027384,57572.0,57571.0,2.90516365]
[1617532115300,0.01027844,57573.0,57571.0,2.90516365]
[1617532115700,0.01027844,57573.0,57572.0,2.38398791]
[1617532116001,0.01027844,57573.0,57572.0,2.65398791]
[1617532116201,0.30539283,57573.0,57572.0,2.65398791]
[1617532117002,0.01027269,57573.0,57572.0,2.65398791]
[1617532117602,0.00518727,57573.0,57572.0,2.65398791]
[1617532117801,0.11752938,57575.0,57572.0,2.65398791]
[1617532117802,0.10725655,57575.0,57572.0,1.27]
[1617532118204,0.10725655,57575.0,57574.0,1.0]
[1617532118404,0.11752938,57575.0,57574.0,2.32184083]
[1617532118603,0.11752938,57575.0,57574.0,2.59184083]
[1617532118806,0.4124935,57575.0,57574.0,2.59184083]
[1617532119206,0.4124935,57575.0,57574.0,2.65294279]
[1617532120914,0.11752914,57575.0,57574.0,2.65294279]
[1617532121807,0.1124435,57575.0,57574.0,2.65294279]
[1617532123114,0.10725655,57575.0,57574.0,2.65294279]
[1617532123506,0.11752878,57575.0,57574.0,2.65294279]
[1617532123706,0.11752878,57575.0,57574.0,1.33110196]
[1617532123906,0.11752878,57575.0,57574.0,2.74258003]
[1617532124107,0.11752878,57575.0,57574.0,1.74258003]
[1617532124308,0.11752878,57575.0,57574.0,2.65092956]
[1617532124906,0.11752878,57575.0,57574.0,5.56312956]
[1617532125107,0.10725655,57575.0,57574.0,5.56312956]
[1617532125407,0.10725655,57575.0,57574.0,5.79734568]
[1617532125909,0.11752882,57575.0,57574.0,5.79734568]
[1617532127511,0.11244132,57575.0,57574.0,5.79734568]
[1617532129814,0.10725655,57575.0,57574.0,5.79734568]
[1617532130614,0.11244131,57575.0,57574.0,5.79734568]
[1617532132015,0.10725655,57575.0,57574.0,4.1822]
[1617532139521,0.10939116,57575.0,57574.0,5.50026332]
[1617532140723,0.10725655,57575.0,57574.0,5.50026332]
[1617532143825,0.10725655,57575.0,57574.0,2.58806332]
[1617532144025,0.23861143,57575.0,57574.0,1.58806332]
[1617532144224,2.87311143,57575.0,57574.0,1.58806332]
[1617532144425,0.23647655,57575.0,57574.0,1.58806332]
[1617532144625,0.23647655,57575.0,57574.0,4.71826332]
[1617532144825,0.23861127,57575.0,57574.0,4.71826332]
[1617532145226,0.23861127,57575.0,57574.0,4.80991156]
[1617532146426,0.23861127,57575.0,57574.0,4.95247598]
[1617532146625,0.23861127,57575.0,57574.0,5.95247598]
[1617532147828,0.10939127,57575.0,57574.0,5.95247598]
[1617532148031,0.10725655,57575.0,57574.0,5.95247598]
[1617532159835,0.10725655,57575.0,57574.0,6.06680598]
[1617532161636,0.10725655,57575.0,57574.0,5.95247598]
[1617532161836,0.10725655,57575.0,57574.0,4.95247598]
[1617532162037,0.00213504,57576.0,57574.0,4.95247598]
[1617532162237,0.00213504,57576.0,57574.0,5.95247598]
[1617532162437,0.00213504,57576.0,57575.0,1.0]
[1617532162638,0.00213512,57577.0,57575.0,2.61117268]
[1617532162837,0.00213512,57577.0,57575.0,2.88117268]
[1617532163038,0.00213512,57577.0,57576.0,2.37692459]
[1617532163437,0.00213512,57577.0,57576.0,5.28082459]
[1617532164239,0.00213512,57577.0,57576.0,5.37246966]
[1617532166951,0.00213626,57578.0,57576.0,5.93935985]
[1617532167350,0.00213626,57578.0,57577.0,1.0]
[1617532167550,0.00213626,57578.0,57577.0,2.57601338]
[1617532167751,0.00213626,57578.0,57577.0,2.84601338]
[1617532171756,3.17503626,57578.0,57577.0,2.84601338]
[1617532172056,3.17503626,57578.0,57577.0,2.7543692]
[1617532174559,3.17808689,57578.0,57577.0,2.7543692]
[1617532175060,3.1729,57578.0,57577.0,2.7543692]
[1617532176965,3.17808833,57578.0,57577.0,2.7543692]
[1617532179266,3.17808833,57578.0,57577.0,1.7543692]
[1617532179468,3.17808833,57578.0,57577.0,2.7543692]
[1617532179867,3.17808833,57578.0,57577.0,1.7543692]
[1617532180267,3.1729,57578.0,57577.0,1.7543692]
[1617532180667,3.18317508,57578.0,57577.0,1.7543692]
[1617532181666,3.18317508,57578.0,57577.0,2.7543692]
[1617532183068,3.1729,57578.0,57577.0,2.7543692]
[1617532184069,3.1729,57578.0,57577.0,1.7543692]
[1617532184267,3.1729,57578.0,57577.0,2.7543692]
[1617532184768,3.17808843,57578.0,57577.0,2.7543692]
[1617532186169,3.1729,57578.0,57577.0,2.7543692]
[1617532186370,3.1729,57578.0,57577.0,1.7543692]
[1617532186970,3.34294846,57578.0,57577.0,1.7543692]
[1617532188287,3.34803656,57578.0,57577.0,1.64711265]
[1617532188503,3.34803656,57578.0,57577.0,1.37711265]
[1617532188671,3.84315413,57578.0,57577.0,1.37711265]
[1617532189071,4.65746972,57578.0,57577.0,0.80985633]
[1617532189270,4.45746972,57578.0,57577.0,0.80985633]
[1617532189470,4.45746972,57578.0,57577.0,1.07985633]
[1617532189471,1.28456972,57578.0,57577.0,1.07985633]
[1617532190272,1.08111734,57578.0,57577.0,1.14095908]
[1617532190471,1.08111734,57578.0,57577.0,1.64731581]
[1617532190872,0.91625734,57578.0,57577.0,1.14095908]
[1617532191272,0.91625734,57578.0,57577.0,1.64723885]
[1617532192173,0.30539413,57578.0,57577.0,1.64723885]
[1617532192574,0.67181663,57578.0,57577.0,1.64723885]
[1617532193475,0.30539413,57578.0,57577.0,1.64723885]
[1617532194277,0.30539413,57578.0,57577.0,1.80957885]
[1617532196081,0.01027709,57578.0,57577.0,1.80957885]
[1617532196982,0.00518973,57578.0,57577.0,1.80957885]
[1617532199184,0.00518973,57578.0,57577.0,2.80957885]
[1617532199386,0.00518973,57578.0,57577.0,6.12657885]
[1617532199812,0.30537796,57581.0,57577.0,6.12657885]
[1617532199813,0.00213688,57581.0,57577.0,6.92668196]
[1617532200201,0.00518957,57582.0,57577.0,6.92668196]
[1617532200202,0.00213684,57582.0,57580.0,1.87903654]
[1617532200584,0.00213684,57582.0,57581.0,0.27]
[1617532200784,0.00518946,57584.0,57581.0,3.14898321]
[1617532200785,0.00213684,57583.0,57581.0,3.14898321]
[1617532201185,0.00213684,57583.0,57582.0,1.94004536]
[1617532201586,0.00213684,57583.0,57582.0,3.30168291]
[1617532201784,0.00213684,57583.0,57582.0,3.40893946]
[1617532201985,0.00518946,57584.0,57582.0,2.75159546]
[1617532202387,0.00213681,57583.0,57582.0,2.40881991]
[1617532202789,0.00213681,57583.0,57582.0,5.41564367]
[1617532203187,0.36641037,57590.0,57582.0,5.41564367]
[1617532203188,0.00213665,57588.0,57582.0,6.8190581]
[1617532203587,0.00213665,57588.0,57583.0,1.0]
[1617532203788,0.00213662,57589.0,57587.0,1.8763834]
[1617532203986,0.00213662,57589.0,57587.0,2.8763834]
[1617532204188,0.00213659,57590.0,57588.0,2.94718482]
[1617532204587,0.00213659,57590.0,57589.0,1.12287]
[1617532204987,0.00213659,57590.0,57589.0,1.39287]
[1617532205189,0.00213659,57590.0,57589.0,2.76546989]
[1617532205788,0.00213659,57590.0,57589.0,2.87272644]
[1617532206492,0.01027638,57590.0,57589.0,2.87272644]
[1617532206891,2.54838907,57590.0,57589.0,2.96435536]
[1617532207291,2.55347635,57590.0,57589.0,2.87272644]
[1617532207694,2.5432,57590.0,57589.0,2.87272644]
[1617532208993,0.00213214,57592.0,57589.0,2.87272644]
[1617532209393,0.00213214,57592.0,57591.0,1.0]
[1617532209594,0.00213212,57593.0,57591.0,2.30952322]
[1617532209793,0.00213212,57593.0,57591.0,2.57952322]
[1617532209993,0.00213212,57593.0,57592.0,1.0]
[1617532210396,0.00213212,57593.0,57592.0,2.64062224]
[1617532211397,0.00213212,57593.0,57592.0,1.64062224]
[1617532212002,0.00213212,57593.0,57592.0,1.13695423]
[1617532213100,0.00517658,57594.0,57592.0,1.64040805]
[1617532213101,0.00213146,57594.0,57592.0,1.64040805]
[1617532213701,0.00213146,57594.0,57593.0,0.86662639]
[1617532214201,0.00213146,57594.0,57593.0,1.13662639]
[1617532214402,0.00213146,57595.0,57593.0,1.64001885]
[1617532214802,0.00213146,57595.0,57594.0,0.86652735]
[1617532215202,0.00213146,57595.0,57594.0,1.13652735]
[1617532216206,0.00213146,57595.0,57594.0,1.63994407]
[1617532217803,0.00213146,57595.0,57594.0,0.27]
[1617532218306,0.1093859,57598.0,57594.0,0.27]
[1617532218706,0.1093859,57598.0,57593.0,0.86462367]
[1617532219105,0.1093859,57598.0,57597.0,0.80452806]
[1617532219606,0.1093859,57598.0,57597.0,1.07452806]
[1617532219807,0.1093859,57598.0,57597.0,1.18178461]
[1617532220006,0.11242782,57598.0,57597.0,1.24286591]
[1617532220809,0.10938588,57598.0,57597.0,1.24286591]
[1617532221207,0.10725655,57598.0,57597.0,1.24286591]
[1617532222009,0.10938587,57598.0,57597.0,1.24286591]
[1617532224012,0.10938587,57598.0,57597.0,4.38996591]
[1617532224611,0.10938587,57598.0,57597.0,4.48158785]
[1617532225413,0.10725655,57598.0,57597.0,4.48158785]
[1617532225712,0.10938553,57598.0,57597.0,4.48158785]
[1617532226815,0.10725655,57598.0,57597.0,4.48158785]
[1617532228521,0.10725655,57598.0,57597.0,5.48158785]
[1617532229120,0.10725655,57598.0,57597.0,4.48158785]
[1617532239729,0.00212767,57602.0,57597.0,4.3743313]
[1617532240329,0.00212767,57602.0,57601.0,0.36098911]
[1617532240530,0.10938422,57602.0,57601.0,0.46824566]
[1617532240731,0.10938422,57602.0,57601.0,0.73824566]
[1617532241133,0.10938422,57602.0,57601.0,0.799324]
[1617532243341,0.1124239,57602.0,57601.0,0.799324]
[1617532244543,3.8591935,57602.0,57601.0,0.799324]
[1617532244943,3.85412571,57602.0,57601.0,0.799324]
[1617532246143,0.11242571,57602.0,57601.0,0.799324]
[1617532246446,0.11242571,57602.0,57601.0,0.925584]
[1617532246844,0.10725655,57602.0,57601.0,0.925584]
[1617532247846,0.10725655,57602.0,57601.0,1.36691787]
[1617532248448,3.07231655,57602.0,57601.0,1.24065787]
[1617532248649,3.074445,57602.0,57601.0,1.24065787]
[1617532249052,3.07748567,57602.0,57601.0,0.799324]
[1617532249450,3.08255354,57602.0,57601.0,0.799324]
[1617532249850,3.37649081,57602.0,57601.0,0.799324]
[1617532252353,3.08255733,57602.0,57601.0,0.799324]
[1617532252854,0.26985733,57602.0,57601.0,0.799324]
[1617532253053,0.11749733,57602.0,57601.0,0.799324]
[1617532253253,0.11242766,57602.0,57601.0,3.93422899]
[1617532253655,0.11242766,57602.0,57601.0,4.02584438]
[1617532254658,0.10725655,57602.0,57601.0,4.02584438]
[1617532254955,0.41233218,57602.0,57601.0,4.52856941]
[1617532255956,0.10725655,57602.0,57601.0,4.52856941]
[1617532256458,0.11752347,57602.0,57601.0,1.83516941]
[1617532256861,0.11752347,57602.0,57601.0,1.74355402]
[1617532258063,0.11752347,57602.0,57601.0,2.74355402]
[1617532258463,0.41232137,57602.0,57601.0,2.74355402]
[1617532259164,0.10725655,57602.0,57601.0,2.74355402]
[1617532259566,0.41231835,57602.0,57601.0,2.74355402]
[1617532261370,0.41231835,57602.0,57601.0,1.74355402]
[1617532261870,0.11751933,57602.0,57601.0,1.74355402]
[1617532267877,0.41232495,57602.0,57601.0,1.74355402]
[1617532268779,0.11752377,57602.0,57601.0,1.74355402]
[1617532270282,0.11752377,57602.0,57601.0,2.74355402]
[1617532273385,0.11244097,57602.0,57601.0,2.74355402]
[1617532273785,0.10725655,57602.0,57601.0,2.74355402]
[1617532273986,0.11752376,57602.0,57601.0,2.74355402]
[1617532274185,0.11752376,57602.0,57601.0,1.74355402]
[1617532274587,0.41232521,57602.0,57601.0,1.74355402]
[1617532274989,0.1175237,57602.0,57601.0,1.74355402]
[1617532276787,0.11243948,57602.0,57601.0,1.74355402]
[1617532277187,0.10725655,57602.0,57601.0,1.74355402]
[1617532277590,0.11752082,57602.0,57601.0,1.74355402]
[1617532279693,0.1124397,57602.0,57601.0,1.74355402]
[1617532281294,0.11752131,57602.0,57601.0,1.74355402]
[1617532282094,0.10725655,57602.0,57601.0,1.74355402]
[1617532282995,0.10653523,57602.0,57601.0,1.74355402]
[1617532283296,0.11679994,57602.0,57601.0,1.74355402]
[1617532283796,0.10653523,57602.0,57601.0,1.74355402]
[1617532284398,0.11679998,57602.0,57601.0,1.74355402]
[1617532285497,0.10653523,57602.0,57601.0,1.74355402]
[1617532285997,0.11679994,57602.0,57601.0,1.74355402]
[1617532286398,0.10653523,57602.0,57601.0,1.74355402]
[1617532288403,0.11171784,57602.0,57601.0,1.74355402]
[1617532290104,0.10653523,57602.0,57601.0,1.74355402]
[1617532290706,0.11171783,57602.0,57601.0,1.74355402]
[1617532291605,0.11171783,57602.0,57601.0,4.73235402]
[1617532291805,0.11171783,57602.0,57601.0,4.82395688]
[1617532292407,0.10866926,57602.0,57601.0,4.82395688]
[1617532295408,0.10866926,57602.0,57601.0,1.83515688]
[1617532296011,0.1117179,57602.0,57601.0,1.74355402]
[1617532298914,0.10866931,57602.0,57601.0,1.74355402]
[1617532299315,0.10653523,57602.0,57601.0,1.74355402]
[1617532300214,0.11171784,57602.0,57601.0,1.74355402]
[1617532300815,0.10866926,57602.0,57601.0,1.74355402]
[1617532301218,0.10653523,57602.0,57601.0,1.74355402]
[1617532301616,0.11171786,57602.0,57601.0,1.74355402]
[1617532302917,0.10653523,57602.0,57601.0,1.74355402]
[1617532303820,0.11171785,57602.0,57601.0,1.74355402]
[1617532304617,0.11171785,57602.0,57601.0,4.57755402]
[1617532304819,0.11171785,57602.0,57601.0,4.68764402]
[1617532305319,0.11171785,57602.0,57601.0,5.68764402]
[1617532305519,0.11171785,57602.0,57601.0,5.77924659]
[1617532305919,0.10866921,57602.0,57601.0,5.92173661]
[1617532306324,0.10653523,57602.0,57601.0,4.92173661]
[1617532306723,0.10653523,57602.0,57601.0,5.92173661]
[1617532307222,0.10866921,57602.0,57601.0,5.92173661]
[1617532308123,0.10653523,57602.0,57601.0,5.92173661]
[1617532310929,0.11172243,57602.0,57601.0,5.92173661]
[1617532312633,0.10653523,57602.0,57601.0,5.92173661]
[1617532313032,0.10867108,57602.0,57601.0,5.92173661]
[1617532314233,0.10867108,57602.0,57601.0,5.97433661]
[1617532314432,0.10867108,57602.0,57601.0,5.92173661]
[1617532317233,0.10653523,57602.0,57601.0,6.48466257]
[1617532317735,0.10867108,57602.0,57601.0,5.92173661]
[1617532318738,0.10653523,57602.0,57601.0,5.92173661]
[1617532319641,0.10653523,57602.0,57601.0,6.48457607]
[1617532319840,0.10653523,57602.0,57601.0,3.65057607]
[1617532320640,0.10653523,57602.0,57601.0,3.41648348]
[1617532321042,0.10653523,57602.0,57601.0,3.41605163]
[1617532331555,0.00213417,57609.0,57608.0,3.1533]
[1617532331955,0.00213417,57609.0,57608.0,4.4233]
[1617532332157,0.00213257,57612.0,57608.0,5.51843374]
[1617532332560,0.00213257,57612.0,57609.0,1.0]
[1617532332959,0.00213257,57612.0,57611.0,1.50130494]
[1617532333158,0.00213257,57612.0,57611.0,2.04970984]
[1617532333358,0.00213257,57612.0,57611.0,2.38076669]
[1617532335862,2.98483257,57612.0,57611.0,2.38076669]
[1617532336463,2.98483257,57612.0,57611.0,1.38076669]
[1617532336872,2.98787895,57612.0,57611.0,1.38076669]
[1617532338266,2.98787895,57612.0,57611.0,2.38076669]
[1617532340170,0.00517895,57612.0,57611.0,2.38076669]
[1617532340568,0.00517895,57612.0,57611.0,5.56826669]
[1617532341169,0.00517895,57612.0,57611.0,5.65985317]
[1617532342271,0.00517895,57612.0,57611.0,4.65985317]
[1617532342472,0.00517895,57612.0,57611.0,5.65985317]
[1617532342673,0.00213203,57612.0,57611.0,5.65985317]
[1617532343974,0.00213203,57615.0,57611.0,5.65985317]
[1617532344374,0.00213203,57615.0,57614.0,1.0]
[1617532344574,0.00213203,57615.0,57614.0,1.94196842]
[1617532344774,0.00213203,57615.0,57614.0,2.21196842]
[1617532344974,0.00213203,57615.0,57614.0,2.27302586]
[1617532346175,0.00213203,57615.0,57614.0,2.63380298]
[1617532347276,0.94542344,57655.0,57614.0,1.63077712]
[1617532347475,0.94542344,57655.0,57614.0,1.27]
[1617532347675,1.5,57642.0,57614.0,1.27]
[1617532347877,0.44685634,57626.0,57624.0,0.11654633]
[1617532348275,3.04730628,57625.0,57624.0,0.38654633]
[1617532349076,0.30470628,57625.0,57624.0,0.38654633]
[1617532349277,0.30470628,57625.0,57624.0,0.49380288]
[1617532350879,3.24680628,57625.0,57624.0,0.49380288]
[1617532359991,3.24680628,57625.0,57624.0,0.93441795]
[1617532360192,0.30470628,57625.0,57624.0,0.93441795]
[1617532360992,0.30470628,57625.0,57624.0,0.49380288]
[1617532361194,3.34360628,57625.0,57624.0,0.49380288]
[1617532361392,3.34360628,57625.0,57624.0,0.93437412]
[1617532361792,3.34360628,57625.0,57624.0,0.49380288]
[1617532361991,0.30470628,57625.0,57624.0,0.49380288]
[1617532362193,0.30470628,57625.0,57624.0,0.9344138]
[1617532362592,0.30470628,57625.0,57624.0,3.7774138]
[1617532362891,0.10725655,57627.0,57624.0,3.7774138]
[1617532363092,0.30462586,57625.0,57624.0,3.86899554]
[1617532363293,0.30462586,57625.0,57624.0,1.02599554]
[1617532363493,0.30462586,57625.0,57624.0,0.81786747]
[1617532363895,3.63202586,57625.0,57624.0,0.81786747]
[1617532364094,3.63202586,57625.0,57624.0,1.81786747]
[1617532364294,3.87624436,57625.0,57624.0,1.81786747]
[1617532364495,3.87624436,57625.0,57624.0,0.81786747]
[1617532364696,3.63202586,57625.0,57624.0,0.37725655]
[1617532367999,3.63202586,57625.0,57624.0,1.37725655]
[1617532368200,3.63202586,57625.0,57624.0,1.81783651]
[1617532369603,0.30462586,57625.0,57624.0,1.81783651]
[1617532369803,0.30462586,57625.0,57624.0,1.98057651]
[1617532370004,0.30462586,57625.0,57624.0,4.60537651]
[1617532370504,0.00517548,57625.0,57624.0,4.69694475]
[1617532370904,0.00213107,57625.0,57624.0,5.19694638]
[1617532371905,0.00213107,57626.0,57624.0,5.19694638]
[1617532372104,0.00213107,57626.0,57625.0,0.15260505]
[1617532372303,0.00213107,57626.0,57625.0,1.59255192]
[1617532372503,0.00213107,57626.0,57625.0,1.86255192]
[1617532372704,0.01024942,57628.0,57625.0,2.36231645]
[1617532372705,0.00213096,57628.0,57625.0,2.36231645]
[1617532373105,0.00213096,57628.0,57626.0,1.0]
[1617532373404,0.00213096,57628.0,57627.0,1.0]
[1617532373605,0.00213096,57628.0,57627.0,2.63030248]
[1617532374406,0.00517519,57629.0,57627.0,2.13058682]
[1617532374706,0.00517519,57629.0,57628.0,0.86067532]
[1617532375206,0.00517519,57629.0,57628.0,1.13067532]
[1617532375606,0.0021283,57630.0,57628.0,1.13067532]
[1617532375806,0.0021283,57630.0,57628.0,2.13067532]
[1617532376006,0.0021283,57630.0,57628.0,2.22223828]
[1617532376205,0.0021283,57630.0,57629.0,1.0]
[1617532376405,0.0021283,57631.0,57629.0,1.85956228]
[1617532376606,0.0021283,57631.0,57629.0,2.12956228]
[1617532376808,0.0021283,57631.0,57630.0,1.85954193]
[1617532377205,0.0021283,57631.0,57630.0,2.23679848]
[1617532378406,0.0021283,57631.0,57630.0,2.175757]
[1617532380711,0.0021283,57631.0,57630.0,1.175757]
[1617532381312,0.01023876,57633.0,57630.0,1.175757]
[1617532381511,0.01023876,57631.0,57630.0,1.175757]
[1617532381912,0.00517011,57631.0,57630.0,1.175757]
[1617532382313,0.01023885,57632.0,57630.0,1.175757]
[1617532382314,0.00516999,57632.0,57630.0,1.175757]
[1617532382713,0.00516999,57632.0,57631.0,0.85984022]
[1617532383114,0.00516999,57632.0,57631.0,1.12984022]
[1617532383514,0.00516999,57632.0,57631.0,2.12984022]
[1617532383814,0.00516999,57632.0,57631.0,1.12984022]
[1617532384417,0.00212875,57632.0,57631.0,1.12984022]
[1617532384717,0.00212875,57634.0,57631.0,1.12984022]
[1617532385014,0.00212875,57634.0,57631.0,2.12984022]
[1617532385215,0.00212875,57634.0,57633.0,0.7982518]
[1617532385616,0.00212875,57634.0,57633.0,1.0682518]
[1617532385917,0.00212873,57635.0,57633.0,1.12928881]
[1617532386316,0.00212873,57634.0,57633.0,1.12928881]
[1617532387116,0.10863873,57634.0,57633.0,1.12928881]
[1617532388120,0.00212873,57634.0,57633.0,1.12928881]
[1617532388721,0.00212873,57635.0,57633.0,1.12928881]
[1617532389020,0.00212873,57635.0,57634.0,0.86132498]
[1617532389422,0.00212873,57635.0,57634.0,1.13132498]
[1617532389824,0.00517131,57635.0,57634.0,1.13132498]
[1617532391523,0.00212933,57635.0,57634.0,1.13132498]
[1617532392326,0.10725655,57636.0,57634.0,1.13132498]
[1617532392724,0.10938332,57636.0,57635.0,0.42095857]
[1617532393125,0.10725655,57636.0,57635.0,0.69095857]
[1617532393527,0.10938332,57636.0,57635.0,0.69095857]
[1617532394126,0.10938332,57636.0,57635.0,4.21815857]
[1617532394929,0.10725655,57636.0,57635.0,4.74968252]
[1617532396129,0.10725655,57636.0,57635.0,1.22248252]
[1617532396531,0.10725655,57636.0,57635.0,1.1309293]
[1617532407747,0.22780655,57636.0,57635.0,1.1309293]
[1617532412454,0.10725655,57636.0,57635.0,1.1309293]
[1617532417662,5.03845655,57636.0,57635.0,1.1309293]
[1617532418062,5.04869262,57636.0,57635.0,0.69095857]
[1617532418262,6.04869262,57636.0,57635.0,0.69095857]
[1617532418462,6.34261469,57636.0,57635.0,0.69095857]
[1617532418864,6.7075886,57636.0,57635.0,0.33103636]
[1617532419763,6.7075886,57636.0,57635.0,0.27]
[1617532420063,6.7075886,57636.0,57634.0,0.01]
[1617532420265,1.0,57635.0,57634.0,0.01]
[1617532420464,1.5,57635.0,57634.0,0.01]
[1617532420665,2.41331703,57635.0,57634.0,0.01]
[1617532421067,2.41331703,57635.0,57633.0,0.27]
[1617532421468,0.91332819,57634.0,57633.0,0.27]
[1617532421666,2.41332819,57634.0,57633.0,0.27]
[1617532421967,2.41332819,57634.0,57633.0,0.63110121]
[1617532422367,2.41332819,57634.0,57633.0,0.36110121]
[1617532422769,2.41332819,57634.0,57633.0,0.63110121]
[1617532422969,2.41332819,57634.0,57633.0,0.27]
[1617532423468,2.41332819,57634.0,57633.0,0.06104181]
[1617532423668,6.14292819,57634.0,57633.0,0.33104181]
[1617532423869,6.14292819,57634.0,57632.0,0.3611438]
[1617532424268,6.14292819,57634.0,57633.0,0.27]
[1617532424670,6.14292819,57634.0,57632.0,0.01]
[1617532424870,6.14292819,57634.0,57633.0,0.36181177]
[1617532424871,2.86018968,57634.0,57633.0,0.36181177]
[1617532425070,3.86018968,57634.0,57633.0,0.63181177]
[1617532425271,3.86018968,57634.0,57629.0,0.06104707]
[1617532425471,0.10725655,57630.0,57629.0,0.06104707]
[1617532425671,2.92354598,57630.0,57626.0,0.36197644]
[1617532426071,2.92354598,57630.0,57607.0,0.56307447]
[1617532426072,1.11631201,57627.0,57625.0,0.36204479]
[1617532426270,1.7,57626.0,57625.0,0.36204479]
[1617532426673,2.8163572,57626.0,57622.0,0.36220062]
[1617532426870,3.8163572,57626.0,57622.0,0.36220062]
[1617532427072,1.66983377,57623.0,57622.0,0.36220062]
[1617532427272,3.36983377,57623.0,57622.0,0.36220062]
[1617532427472,3.47709032,57623.0,57622.0,0.37220062]
[1617532427872,3.72129731,57623.0,57622.0,0.43325237]
[1617532428171,6.52549731,57623.0,57622.0,0.43325237]
[1617532428673,6.97202262,57623.0,57622.0,0.43325237]
[1617532429073,6.97202262,57623.0,57622.0,0.07105175]
[1617532429975,5.97202262,57623.0,57622.0,0.07105175]
[1617532430175,3.16782262,57623.0,57622.0,0.06105175]
[1617532430377,4.6752759,57623.0,57616.0,0.80549419]
[1617532430576,4.6752759,57623.0,57616.0,0.36267702]
[1617532430777,4.6752759,57623.0,57616.0,0.27627702]
[1617532430978,1.11650888,57617.0,57611.0,0.08936057]
[1617532431177,1.7,57616.0,57611.0,0.08936057]
[1617532431580,1.7,57606.0,57597.0,0.44441915]
[1617532431781,0.30456823,57598.0,57593.0,0.44481159]
[1617532431979,1.7,57597.0,57593.0,0.71481159]
[1617532432181,0.30457281,57594.0,57592.0,0.45482705]
[1617532432379,1.7,57593.0,57592.0,0.45482705]
[1617532432578,2.7,57593.0,57592.0,0.44482705]
[1617532432779,2.5,57593.0,57592.0,0.44482705]
[1617532432978,2.80457485,57593.0,57592.0,0.71482705]
[1617532433178,3.04885873,57593.0,57592.0,0.71482705]
[1617532433580,3.15611528,57593.0,57592.0,0.3310708]
[1617532435183,2.9118314,57593.0,57592.0,0.7758281]
[1617532435784,2.9118314,57593.0,57592.0,0.0610708]
[1617532435785,6.1250314,57593.0,57592.0,0.0610708]
[1617532435985,5.82045655,57593.0,57573.0,0.44156405]
[1617532436384,5.82045655,57593.0,57586.0,0.27]
[1617532436385,2.60725655,57593.0,57586.0,0.27]
[1617532436585,0.00211436,57592.0,57586.0,0.27]
[1617532436784,0.00211436,57592.0,57585.0,0.27]